fUSD/lending_fUSD_20251102
["ID","MTS","AMOUNT","RATE_DAILY","PERIOD"]
[392847920,1762053908532,-305.33436794,0.000145,2]
[392847921,1762053910639,-305.726844,0.000145,2]
[392847922,1762053916567,-7827.78015528,0.000145,2]
[392847923,1762053916596,-10000.01,0.000145,2]
[392847924,1762053916620,-10000.01,0.000145,2]
[392847925,1762053917169,-10000.01,0.000145,2]
[392847926,1762053917475,-10000.01,0.000145,2]
[392847927,1762053917489,-10000.01,0.000145,2]
[392847928,1762053917620,-10000.01,0.000145,2]
[392847929,1762053917802,-10000.01,0.000145,2]
[392847930,1762053917915,-10000.01,0.000145,2]
[392847931,1762053918032,-10000.01,0.000145,2]
[392847932,1762053918144,-10000.01,0.000145,2]
[392847933,1762053918247,-10000.01,0.000145,2]
[392847934,1762053918361,-10000.01,0.000145,2]
[392847935,1762053918476,-10000.01,0.000145,2]
[392847936,1762053918586,-10000.01,0.000145,2]
[392847937,1762053918807,-10000.01,0.000145,2]
[392847938,1762053918925,-10000.01,0.000145,2]
[392847939,1762053920634,-10000.01,0.000145,2]
[392847940,1762053920785,-4658.6717531,0.000145,2]
[392847941,1762053920814,-250.0,0.0001465,2]
[392847942,1762053928039,150.0,0.00013488,2]
[392847943,1762053985224,646.62597852,0.000145,2]
[392847944,1762053987552,9353.38402148,0.000146,2]
[392847945,1762053987575,10000.01,0.000146,2]
[392847946,1762053987598,10000.01,0.000146,2]
[392847947,1762053987620,10000.01,0.000146,2]
[392847948,1762053987642,10000.01,0.000146,2]
[392847949,1762053987668,10000.01,0.000146,2]
[392847950,1762053987690,10000.01,0.000146,2]
[392847951,1762053987711,10000.01,0.000146,2]
[392847952,1762053987732,10000.01,0.000146,2]
[392847953,1762053987754,10000.01,0.000146,2]
[392847954,1762054003028,-330.31657013,0.00014599,2]
[392847955,1762054003058,-500.0,0.00014599,2]
[392847956,1762054003090,-299.23917365,0.00014599,2]
[392847957,1762054003122,-238.91843882,0.00014599,2]
[392847958,1762054003161,-500.0,0.00014599,2]
[392847959,1762054003194,-500.0,0.00014599,2]
[392847960,1762054003226,-500.0,0.00014599,2]
[392847961,1762054003259,-500.0,0.00014599,2]
[392847962,1762054003292,-500.0,0.00014599,2]
[392847963,1762054003324,-500.0,0.00014599,2]
[392847964,1762054003357,-500.0,0.00014599,2]
[392847965,1762054003502,-500.0,0.00014599,2]
[392847966,1762054003536,-500.0,0.00014599,2]
[392847967,1762054003569,-500.0,0.00014599,2]
[392847968,1762054003605,-500.0,0.00014599,2]
[392847969,1762054003639,-500.0,0.00014599,2]
[392847970,1762054003672,-500.0,0.00014599,2]
[392847971,1762054003704,-500.0,0.00014599,2]
[392847972,1762054003735,-500.0,0.00014599,2]
[392847973,1762054003766,-500.0,0.00014599,2]
[392847974,1762054003798,-500.0,0.00014599,2]
[392847975,1762054003922,-388.78186042,0.00014599,2]
[392847976,1762054003956,-500.0,0.00014599,2]
[392847977,1762054003988,-500.0,0.00014599,2]
[392847978,1762054004020,-500.0,0.00014599,2]
[392847979,1762054005601,-6335.51791396,0.000146,2]
[392847980,1762054005661,-10000.01,0.000146,2]
[392847981,1762054005676,-10000.01,0.000146,2]
[392847982,1762054005690,-10000.01,0.000146,2]
[392847983,1762054005870,-10000.01,0.000146,2]
[392847984,1762054006091,-10000.01,0.000146,2]
[392847985,1762054008807,5000.0,0.00012,2]
[392847986,1762054011224,-299.31642017,0.00014499,2]
[392847987,1762054011265,-500.0,0.00014599,2]
[392847988,1762054011300,-500.0,0.00014599,2]
[392847989,1762054011331,-500.0,0.00014599,2]
[392847990,1762054011366,-500.0,0.00014599,2]
[392847991,1762054011398,-250.0,0.00014599,2]
[392847992,1762054011531,-4901.37715966,0.000146,2]
[392847993,1762054011556,-10000.01,0.000146,2]
[392847994,1762054011581,-10000.01,0.000146,2]
[392847995,1762054011595,-10000.01,0.000146,2]
[392847996,1762054029730,-310.302675,0.00014527,2]
[392847997,1762054029760,-150.0,0.00014599,2]
[392847998,1762054029844,-9079.40465,0.000146,2]
[392847999,1762054029858,-10000.01,0.000146,2]
[392848000,1762054029873,-10000.01,0.000146,2]
[392848001,1762054029916,-10000.01,0.000146,2]
[392848002,1762054029954,-10000.01,0.000146,2]
[392848003,1762054030077,-10000.01,0.000146,2]
[392848004,1762054036707,-500.0,0.00014599,2]
[392848005,1762054036740,-500.0,0.00014599,2]
[392848006,1762054036772,-500.0,0.00014599,2]
[392848007,1762054036803,-500.0,0.00014599,2]
[392848008,1762054036835,-250.0,0.00014599,2]
[392848009,1762054036935,-5500.01,0.000146,2]
[392848010,1762054037039,-10000.01,0.000146,2]
[392848011,1762054037056,-10000.01,0.000146,2]
[392848012,1762054042677,-10000.01,0.000146,2]
[392848013,1762054042786,-10000.01,0.000146,2]
[392848014,1762054042919,-10000.01,0.000146,2]
[392848015,1762054043026,-10000.01,0.000146,2]
[392848016,1762054043136,500.0,0.00013356,2]
[392848017,1762054043153,-10000.01,0.000146,2]
[392848018,1762054043241,-10000.01,0.000146,2]
[392848019,1762054043349,-10000.01,0.000146,2]
[392848020,1762054043456,500.0,0.00013356,2]
[392848021,1762054043508,500.0,0.00013356,2]
[392848022,1762054047575,-10000.01,0.000146,2]
[392848023,1762054047749,-500.0,0.00014599,2]
[392848024,1762054047815,-500.0,0.00014599,2]
[392848025,1762054047825,-500.0,0.00014599,2]
[392848026,1762054047835,-8000.01,0.000146,2]
[392848027,1762054047904,-500.0,0.00014599,2]
[392848028,1762054047945,-500.0,0.00014599,2]
[392848029,1762054048046,-500.0,0.00014599,2]
[392848030,1762054048057,-500.0,0.00014599,2]
[392848031,1762054048067,-500.0,0.00014599,2]
[392848032,1762054048076,-6500.01,0.000146,2]
[392848033,1762054059580,-1760.6733782,0.00014536,2]
[392848034,1762054059609,-1760.6733782,0.00014576,2]
[392848035,1762054059638,-1200.0,0.00014598,2]
[392848036,1762054059670,-57.3164872,0.00014599,2]
[392848037,1762054059747,-442.6835128,0.00014599,2]
[392848038,1762054059779,-352.18676122,0.00014599,2]
[392848039,1762054059812,-500.0,0.00014599,2]
[392848040,1762054059845,-500.0,0.00014599,2]
[392848041,1762054059877,-500.0,0.00014599,2]
[392848042,1762054059910,-500.0,0.00014599,2]
[392848043,1762054059944,-500.0,0.00014599,2]
[392848044,1762054059977,-500.0,0.00014599,2]
[392848045,1762054060009,-500.0,0.00014599,2]
[392848046,1762054060042,-500.0,0.00014599,2]
[392848047,1762054060148,-500.0,0.00014599,2]
[392848048,1762054060181,-500.0,0.00014599,2]
[392848049,1762054060214,-500.0,0.00014599,2]
[392848050,1762054060495,-500.0,0.00014599,2]
[392848051,1762054060529,-500.0,0.00014599,2]
[392848052,1762054060563,-500.0,0.00014599,2]
[392848053,1762054060596,-500.0,0.00014599,2]
[392848054,1762054060628,-500.0,0.00014599,2]
[392848055,1762054061005,-352.95296476,0.000146,2]
[392848056,1762054061019,-500.0,0.000146,2]
[392848057,1762054061047,-2000.01,0.000146,2]
[392848058,1762054061072,-10000.01,0.000146,2]
[392848059,1762054061100,-10000.01,0.000146,2]
[392848060,1762054061118,-10000.01,0.000146,2]
[392848061,1762054061133,-10000.01,0.000146,2]
[392848062,1762054063042,-10000.01,0.000146,2]
[392848063,1762054063207,-10000.01,0.000146,2]
[392848064,1762054063309,-10000.01,0.000146,2]
[392848065,1762054063404,-10000.01,0.000146,2]
[392848066,1762054065735,-10000.01,0.000146,2]
[392848067,1762054066154,-10000.01,0.000146,2]
[392848068,1762054066306,-10000.01,0.000146,2]
[392848069,1762054066423,-10000.01,0.000146,2]
[392848070,1762054066540,-10000.01,0.000146,2]
[392848071,1762054066644,-10000.01,0.000146,2]
[392848072,1762054074684,-500.0,0.00014599,2]
[392848073,1762054074712,-359.1291185,0.00014599,2]
[392848074,1762054074758,-8281.751763,0.000146,2]
[392848075,1762054074787,-10000.01,0.000146,2]
[392848076,1762054074919,-10000.01,0.000146,2]
[392848077,1762054075031,-10000.01,0.000146,2]
[392848078,1762054077724,-10000.01,0.000146,2]
[392848079,1762054077821,-10000.01,0.000146,2]
[392848080,1762054077947,-10000.01,0.000146,2]
[392848081,1762054078049,-10000.01,0.000146,2]
[392848082,1762054078196,-10000.01,0.000146,2]
[392848083,1762054078304,-10000.01,0.000146,2]
[392848084,1762054082374,-300.0,0.00014599,2]
[392848085,1762054082407,-500.0,0.00014599,2]
[392848086,1762054082438,-500.0,0.00014599,2]
[392848087,1762054082472,-500.0,0.00014599,2]
[392848088,1762054082504,-500.0,0.00014599,2]
[392848089,1762054082610,-5400.01,0.000146,2]
[392848090,1762054082640,-10000.01,0.000146,2]
[392848091,1762054082653,-10000.01,0.000146,2]
[392848092,1762054082724,-10000.01,0.000146,2]
[392848093,1762054083843,-10000.01,0.000146,2]
[392848094,1762054083959,-10000.01,0.000146,2]
[392848095,1762054084123,-3252.47847286,0.000146,2]
[392848096,1762054084146,-3495.05305428,0.000146,2]
[392848097,1762054091243,474.66254457,0.00014599,2]
[392848098,1762054095959,-1760.6733782,0.00014617,2]
[392848099,1762054100095,550.936355,0.00014544,2]
[392848100,1762054111203,-600.06015563,0.00014636,2]
[392848101,1762054126386,-1760.6733782,0.00014657,2]
[392848102,1762054141582,-1760.6733782,0.00014698,2]
[392848103,1762054156792,-1760.6733782,0.00014738,2]
[392848104,1762054171875,-819.54251352,0.00014742,2]
[392848105,1762054187596,-1760.6733782,0.00014779,2]
[392848106,1762054193599,6478.6632436,0.00013954,2]
[392848107,1762054193621,10000.01,0.00013954,2]
[392848108,1762054193644,6896.9267564,0.00013954,2]
[392848110,1762054204088,-300.0,0.00014799,2]
[392848111,1762054204119,-1200.0,0.00014799,2]
[392848112,1762054204151,-300.0,0.00014799,2]
[392848113,1762054204181,-300.0,0.00014799,2]
[392848114,1762054204213,-150.0,0.00014799,2]
[392848115,1762054207383,316.54,0.00014,2]
[392848116,1762054212927,171.7108306,0.00014603,2]
[392848117,1762054216917,500.0,0.00013356,2]
[392848118,1762054217509,500.0,0.00014726,2]
[392848142,1762054232085,-611.06121194,0.000148,2]
[392848143,1762054232095,-2317.7867,0.000148,2]
[392848144,1762054232104,-172.66624647,0.000148,2]
[392848145,1762054232114,-1000.0,0.000148,2]
[392848146,1762054232124,-1891.85789055,0.000148,2]
[392848147,1762054232244,-249.33970945,0.000148,2]
[392848148,1762054232254,-423.8181,0.000148,2]
[392848149,1762054232263,-178.48491531,0.000148,2]
[392848150,1762054232272,-11330.87572189,0.000148,2]
[392848151,1762054232283,-48.83017811,0.000148,2]
[392848152,1762054232294,-1760.6733782,0.00014819,2]
[392848153,1762054232303,-172.66624644,0.00014825,2]
[392848154,1762054232311,-178.48491529,0.00014833,2]
[392848155,1762054232320,-247.43448,0.0001485,2]
[392848156,1762054232330,-172.66624644,0.0001485,2]
[392848157,1762054232339,-1760.6733782,0.0001486,2]
[392848158,1762054232348,-1670.88,0.0001486,2]
[392848159,1762054232357,-168.0,0.00014863,2]
[392848160,1762054232366,-178.48491529,0.00014867,2]
[392848161,1762054232378,-500.0,0.00014873,2]
[392848162,1762054232388,-500.0,0.00014873,2]
[392848163,1762054232398,-500.0,0.00014873,2]
[392848164,1762054232407,-500.0,0.00014873,2]
[392848166,1762054232416,-566.87953643,0.00014873,2]
[392848167,1762054232427,-500.0,0.00014873,2]
[392848168,1762054232436,-504.82107033,0.00014873,2]
[392848169,1762054232446,-500.0,0.00014873,2]
[392848170,1762054232455,-500.60577954,0.00014873,2]
[392848171,1762054232464,-410.35411142,0.00014873,2]
[392848172,1762054232473,-387.51376257,0.00014873,2]
[392848173,1762054232482,-506.84609563,0.00014873,2]
[392848174,1762054232492,-500.69313067,0.00014873,2]
[392848175,1762054232500,-500.0,0.00014873,2]
[392848176,1762054232510,-500.0,0.00014873,2]
[392848177,1762054232519,-500.0,0.00014873,2]
[392848178,1762054232530,-172.66624644,0.00014875,2]
[392848179,1762054232541,-151.0,0.00014891,2]
[392848180,1762054232550,-282.08047539,0.00014891,2]
[392848181,1762054232559,-151.0,0.00014891,2]
[392848182,1762054232569,-151.0,0.00014891,2]
[392848183,1762054232578,-151.0,0.00014891,2]
[392848184,1762054232587,-331.0116582,0.00014891,2]
[392848185,1762054232596,-151.0,0.00014891,2]
[392848187,1762054232606,-151.0,0.00014891,2]
[392848189,1762054232615,-151.0,0.00014891,2]
[392848192,1762054232626,-200.0,0.00014891,2]
[392848194,1762054232636,-500.0,0.00014891,2]
[392848196,1762054232645,-500.0,0.00014891,2]
[392848198,1762054232655,-782.88356844,0.00014891,2]
[392848200,1762054232665,-500.0,0.00014891,2]
[392848202,1762054232675,-500.0,0.00014891,2]
[392848203,1762054232685,-500.0,0.00014891,2]
[392848204,1762054232695,-620.0,0.00014891,2]
[392848205,1762054232704,-206.72887085,0.00014891,2]
[392848206,1762054232714,-204.30597501,0.00014891,2]
[392848207,1762054232724,-500.0,0.00014891,2]
[392848208,1762054232734,-500.0,0.00014891,2]
[392848209,1762054232743,-500.0,0.00014891,2]
[392848210,1762054232753,-500.0,0.00014891,2]
[392848211,1762054232762,-496.47127164,0.00014891,2]
[392848212,1762054232773,-451.39559509,0.00014891,2]
[392848213,1762054232783,-500.0,0.00014891,2]
[392848214,1762054232792,-500.0,0.00014891,2]
[392848215,1762054232801,-151.0,0.00014891,2]
[392848216,1762054232811,-239.84119403,0.00014891,2]
[392848217,1762054232820,-200.0,0.00014891,2]
[392848218,1762054232829,-159.17221349,0.00014897,2]
[392848219,1762054232838,-510.64566172,0.00014899,2]
[392848220,1762054232847,-1107.79,0.00014899,2]
[392848221,1762054232857,-167.24290717,0.00014899,2]
[392848222,1762054232867,-231.22159909,0.00014899,2]
[392848223,1762054232877,-559.46742155,0.00014899,2]
[392848224,1762054232886,-500.0,0.00014899,2]
[392848225,1762054232895,-500.0,0.00014899,2]
[392848226,1762054232904,-500.0,0.00014899,2]
[392848227,1762054232913,-500.0,0.00014899,2]
[392848228,1762054232922,-567.87157202,0.00014899,2]
[392848229,1762054232932,-500.0,0.00014899,2]
[392848230,1762054232942,-500.0,0.00014899,2]
[392848231,1762054232951,-500.0,0.00014899,2]
[392848232,1762054232961,-500.0,0.00014899,2]
[392848233,1762054232970,-500.0,0.00014899,2]
[392848234,1762054232979,-81718.44056821,0.000149,2]
[392848235,1762054232996,-155493.99366219,0.000149,2]
[392848236,1762054233008,-5814.2685,0.000149,2]
[392848237,1762054237018,183.934052,0.00014725,2]
[392848238,1762054237404,592.6096,0.000145,2]
[392848241,1762054238320,-173.04732672,0.000148,2]
[392848242,1762054238332,-2373.38219359,0.000149,2]
[392848243,1762054238350,-9099.22529786,0.000149,2]
[392848244,1762054238363,-910.74379539,0.000149,2]
[392848245,1762054238376,-6491.52736864,0.000149,2]
[392848249,1762054240010,-1251.34417826,0.000149,2]
[392848250,1762054240023,-478.03820914,0.000149,2]
[392848251,1762054240064,-1543.36,0.000149,2]
[392848274,1762054240279,-130364.18942672,0.000149,2]
[392848275,1762054240289,-214.80891318,0.000149,2]
[392848277,1762054240299,-172.66624644,0.000149,2]
[392848278,1762054240308,-1760.6733782,0.000149,2]
[392848280,1762054240318,-178.48491529,0.000149,2]
[392848282,1762054240327,-337.3226557,0.000149,2]
[392848284,1762054240337,-584.29144036,0.000149,2]
[392848286,1762054240347,-168.0,0.00014945,2]
[392848288,1762054240356,-1299.8774144,0.00014946,2]
[392848290,1762054240366,-500.0,0.00014959,2]
[392848292,1762054240375,-500.0,0.00014973,2]
[392848294,1762054240385,-500.0,0.00014973,2]
[392848296,1762054240395,-592.76484988,0.00014973,2]
[392848298,1762054240405,-501.71430673,0.00014973,2]
[392848301,1762054240419,-500.0,0.00014973,2]
[392848303,1762054240429,-504.17275215,0.00014973,2]
[392848305,1762054240439,-502.8685758,0.00014973,2]
[392848307,1762054240448,-500.0,0.00014973,2]
[392848309,1762054240458,-500.0,0.00014973,2]
[392848311,1762054240468,-500.0,0.00014973,2]
[392848313,1762054240477,-502.84223801,0.00014973,2]
[392848315,1762054240487,-500.0,0.00014973,2]
[392848317,1762054240497,-500.0,0.00014973,2]
[392848319,1762054240507,-500.0,0.00014973,2]
[392848321,1762054240516,-160.59365828,0.00014973,2]
[392848322,1762054240526,-500.0,0.00014973,2]
[392848323,1762054240535,-500.0,0.00014973,2]
[392848324,1762054240545,-501.36751842,0.00014973,2]
[392848325,1762054240555,-205.03424895,0.00014973,2]
[392848326,1762054240566,-327.83035418,0.00014973,2]
[392848327,1762054240575,-500.0,0.00014973,2]
[392848328,1762054240585,-500.0,0.00014973,2]
[392848329,1762054240595,-500.0,0.00014973,2]
[392848330,1762054240604,-418.72633657,0.00014973,2]
[392848331,1762054240613,-500.0,0.00014973,2]
[392848332,1762054240622,-177.21270658,0.00014973,2]
[392848333,1762054240632,-500.0,0.00014973,2]
[392848334,1762054240641,-500.0,0.00014973,2]
[392848335,1762054240650,-500.0,0.00014973,2]
[392848336,1762054240659,-159.88888922,0.00014973,2]
[392848337,1762054240669,-500.0,0.00014973,2]
[392848338,1762054240678,-163.46047891,0.00014973,2]
[392848339,1762054240688,-501.14032437,0.00014973,2]
[392848340,1762054240697,-326.36037204,0.00014973,2]
[392848341,1762054240707,-500.0,0.00014973,2]
[392848342,1762054240716,-525.65476958,0.00014973,2]
[392848343,1762054240726,-500.0,0.00014973,2]
[392848344,1762054240735,-500.0,0.00014973,2]
[392848345,1762054240744,-500.0,0.00014973,2]
[392848346,1762054240753,-500.0,0.00014973,2]
[392848347,1762054240763,-501.61838709,0.00014973,2]
[392848348,1762054240776,-500.0,0.00014973,2]
[392848349,1762054240786,-304.51063375,0.00014973,2]
[392848350,1762054240795,-500.0,0.00014973,2]
[392848351,1762054240804,-500.41944361,0.00014973,2]
[392848352,1762054240814,-500.0,0.00014973,2]
[392848353,1762054240823,-500.0,0.00014973,2]
[392848354,1762054240833,-506.30885879,0.00014973,2]
[392848355,1762054240842,-500.0,0.00014973,2]
[392848356,1762054240851,-500.0,0.00014973,2]
[392848357,1762054240861,-218.38975015,0.00014973,2]
[392848358,1762054240871,-158.04703977,0.00014973,2]
[392848359,1762054240880,-500.0,0.00014973,2]
[392848360,1762054240893,-500.0,0.00014973,2]
[392848361,1762054240903,-500.0,0.00014973,2]
[392848362,1762054240913,-151.0,0.00014973,2]
[392848363,1762054240923,-151.0,0.00014973,2]
[392848364,1762054240932,-151.0,0.00014974,2]
[392848365,1762054240943,-151.0,0.00014975,2]
[392848366,1762054240952,-1326.07349227,0.00014976,2]
[392848367,1762054240969,-813.92650773,0.00014976,2]
[392848368,1762054240978,-493.79,0.00014976,2]
[392848369,1762054240988,-559.0,0.00014976,2]
[392848370,1762054240997,-477.45087779,0.00014978,2]
[392848371,1762054241006,-247.43449,0.0001498,2]
[392848372,1762054241016,-168.0,0.00014988,2]
[392848373,1762054241026,-1272.0,0.00014994,2]
[392848374,1762054241035,-819.0,0.00014994,2]
[392848375,1762054241044,-1187.0,0.00014994,2]
[392848376,1762054241054,-905.0,0.00014994,2]
[392848377,1762054241063,-639.43,0.00014998,2]
[392848378,1762054241073,-177.854,0.00014998,2]
[392848379,1762054241082,-8279.74377958,0.00014999,2]
[392848380,1762054241092,-191.44156399,0.00014999,2]
[392848381,1762054241101,-150.0,0.00014999,2]
[392848382,1762054241111,-500.0,0.00014999,2]
[392848383,1762054241120,-150.0,0.00014999,2]
[392848384,1762054241130,-500.0,0.00014999,2]
[392848385,1762054241139,-150.0,0.00014999,2]
[392848386,1762054241152,-150.0,0.00014999,2]
[392848387,1762054241162,-175.99149693,0.00014999,2]
[392848388,1762054241175,-150.0,0.00014999,2]
[392848389,1762054241185,-150.0,0.00014999,2]
[392848390,1762054241194,-858.0,0.00015,2]
[392848391,1762054241203,-27823.94326115,0.00015,2]
[392848392,1762054241709,-32649.38310277,0.00015,2]
[392848393,1762054241722,-873794.67754167,0.00015,2]
[392848394,1762054241733,-1768.52746941,0.00015,2]
[392848399,1762054243014,-82009.49116407,0.00015,2]
[392848400,1762054243230,-816.0,0.00015,2]
[392848426,1762054246121,-1187.41441,0.00014976,2]
[392848427,1762054246229,-407.58559,0.00014976,2]
[392848428,1762054246238,-1967.24323,0.00015,2]
[392848429,1762054252465,282.08,0.00014355,2]
[392848430,1762054289032,1092.0,0.00014765,2]
[392848435,1762054293825,1092.0,0.00014429,2]
[392848436,1762054298822,1092.0,0.00014429,2]
[392848437,1762054303745,1092.0,0.00014429,2]
[392848439,1762054305680,899.6748,0.000145,2]
[392848442,1762054309236,1101.04346057,0.00014429,2]
[392848443,1762054336295,420.1439,0.000145,2]
[392848444,1762054339094,500.0,0.0001202,2]
[392848445,1762054346470,480.81335683,0.0001202,2]
[392848446,1762054346495,19.18664317,0.0001202,2]
[392848447,1762054346821,500.0,0.0001202,2]
[392848448,1762054347141,500.0,0.0001202,2]
[392848449,1762054347486,500.0,0.00012012,2]
[392848450,1762054347914,500.0,0.00012012,2]
[392848451,1762054350839,500.0,0.0001202,2]
[392848452,1762054352192,508.74569467,0.0001202,2]
[392848453,1762054355611,500.0,0.0001202,2]
[392848454,1762054355935,500.0,0.00012012,2]
[392848455,1762054360673,1000.0,0.000145,2]
[392848643,1762054368739,4972.07766216,0.000145,2]
[392848646,1762054368762,10000.01,0.000145,2]
[392848649,1762054368788,10000.01,0.000145,2]
[392848652,1762054368812,10000.01,0.000145,2]
[392848655,1762054368834,10000.01,0.000145,2]
[392848659,1762054368858,10000.01,0.000145,2]
[392848662,1762054368880,10000.01,0.000145,2]
[392848665,1762054368903,10000.01,0.000145,2]
[392848668,1762054368925,10000.01,0.000145,2]
[392848671,1762054368947,10000.01,0.000145,2]
[392848789,1762054374147,500.0,0.00013356,2]
[392848790,1762054376516,500.0,0.00013356,2]
[392848791,1762054388906,500.0,0.00013356,2]
[392848792,1762054390822,-300.0,0.00014499,2]
[392848793,1762054390851,-300.0,0.00014499,2]
[392848794,1762054390879,-300.0,0.00014499,2]
[392848795,1762054390906,-150.0,0.00014499,2]
[392848796,1762054393917,-3182.29110043,0.000145,2]
[392848797,1762054393942,-10000.01,0.000145,2]
[392848798,1762054394010,-10000.01,0.000145,2]
[392848799,1762054394187,-10000.01,0.000145,2]
[392848800,1762054394463,-10000.01,0.000145,2]
[392848801,1762054394565,-10000.01,0.000145,2]
[392848802,1762054394686,-10000.01,0.000145,2]
[392848803,1762054394780,-10000.01,0.000145,2]
[392848805,1762054396747,-10000.01,0.000145,2]
[392848806,1762054396862,-10000.01,0.000145,2]
[392848810,1762054399651,-1565.0,0.00014452,2]
[392848811,1762054399689,-6870.01,0.000145,2]
[392848812,1762054399751,-10000.01,0.000145,2]
[392848813,1762054399856,-10000.01,0.000145,2]
[392848814,1762054400009,-10000.01,0.000145,2]
[392848815,1762054400120,-10000.01,0.000145,2]
[392848816,1762054400253,-10000.01,0.000145,2]
[392848817,1762054400353,-10000.01,0.000145,2]
[392848818,1762054411887,-10000.01,0.000145,2]
[392848819,1762054412071,-10000.01,0.000145,2]
[392848820,1762054412170,-10000.01,0.000145,2]
[392848822,1762054423782,-10000.01,0.000145,2]
[392848824,1762054423910,-10000.01,0.000145,2]
[392848825,1762054424112,-10000.01,0.000145,2]
[392848826,1762054424245,-10000.01,0.000145,2]
[392848827,1762054424368,-10000.01,0.000145,2]
[392848828,1762054424495,-10000.01,0.000145,2]
[392848829,1762054429957,-10000.01,0.000145,2]
[392848830,1762054430222,-10000.01,0.000145,2]
[392848831,1762054430373,-10000.01,0.000145,2]
[392848832,1762054444973,-300.0,0.00014499,2]
[392848833,1762054460242,-10000.01,0.000145,2]
[392848834,1762054460344,-10000.01,0.000145,2]
[392848835,1762054460434,-10000.01,0.000145,2]
[392848836,1762054460540,-10000.01,0.000145,2]
[392848837,1762054460670,-4975.22123741,0.000145,2]
[392848844,1762054475348,-1565.0,0.00014639,2]
[392848845,1762054475818,220.46289558,0.00014427,2]
[392848847,1762054490600,-500.0,0.00014726,2]
[392848848,1762054496952,150.0,0.00014008,2]
[392848849,1762054505704,-1425.0,0.00014739,2]
[392848855,1762054522399,-1425.0,0.00014756,2]
[392848859,1762054536025,-1000.0,0.00014778,2]
[392848860,1762054544018,500.0,0.00013356,2]
[392848861,1762054547436,500.0,0.00013356,2]
[392848862,1762054551309,-1565.0,0.00014797,2]
[392848863,1762054564756,500.0,0.00013356,2]
[392848864,1762054565369,500.0,0.00014726,2]
[392848865,1762054578272,221.66766337,0.00014558,2]
[392848866,1762054585325,372.77087374,0.00014786,2]
[392848867,1762054591381,372.77087372,0.00014793,2]
[392848868,1762054610196,168.0,0.00014763,2]
[392848870,1762054653767,1425.0,0.00014763,2]
[392848871,1762054667636,7439.80058917,0.00014511,2]
[392848872,1762054667658,1686.42207583,0.00014511,2]
[392848874,1762054701046,893.21759391,0.00014624,2]
[392848875,1762054713541,1425.0,0.00014795,2]
[392848876,1762054715567,159.93048841,0.00014742,2]
[392848877,1762054748979,500.0,0.00013356,2]
[392848878,1762054750161,500.0,0.00014726,2]
[392848888,1762054816430,10000.01,0.00013937,2]
[392848889,1762054816455,4291.12,0.00013937,2]
[392848891,1762054822751,168.0,0.00014588,2]
[392848893,1762054885183,150.0,0.0001389,2]
[392848894,1762054885365,150.0,0.0001389,120]
[392848895,1762054888591,186.38543686,0.0001471,2]
[392848896,1762054894730,186.38543686,0.00014799,2]